Cogmind - Beta 10.2 @@@ ROGUE MODE // 2021.06.11 @ 16:21:58 Player: Finestep Result: Self-destructed Performance ------------- Evolutions (7) 3500 Regions Visited (25) 5000 Robots Destroyed (432) 2160 Value Destroyed (26474) 26474 Prototype IDs (224) 4480 Alien Tech Used (3) 600 Bonus (19397) 19397 TOTAL SCORE: 61611 Bonus ------- High Alert Combat Kills 4014 Follower Combat Kills 5191 Entered Garrisons 1400 Used RIF Installer 3500 Met Data Miner 300 Used Data Conduit 3000 Pursued by Intercept 1000 Met Sigix 2000 Friendly Fire -1008 Cogmind --------- Core Integrity 397/1300 Matter 245/300 Energy 14/100 System Corruption 51% Temperature Cool (0) Movement Walking (140) Ox1 Location -3/Quarantine Parts ------- > --- POWER (2) -------- (None) > --- PROPULSION (4) --- Enhanced Biometal Leg High-density Centrium Leg High-density Centrium Leg > --- UTILITY (13) ----- Large Storage Unit Large Storage Unit High-capacity Storage Unit High-capacity Storage Unit Advanced Signal Interpreter Experimental Targeting Computer Improved Armor Integrity Analyzer Experimental Hacking Suite Relay Coupler [NC] (22) Relay Coupler [Sentry] (22) > --- WEAPON (2) ------- Linked Autogun > --- INVENTORY (32) --- Improved Heavy Siege Treads Experimental Power Amplifier Experimental Heat Sink Matter Compressor (250) Long-range Sensor Array Advanced Transmission Jammer Advanced Transmission Jammer Experimental Phase Shifter EM Dispersion Field Improved Energy Mantle Relay Coupler [Sentry] (26) High-powered Tractor Beam High-powered Transdimensional Reconstructor Core Reset Matrix Subatomic Replicator EMDS EMDS Nova Cannon Enhanced Gauss Cannon Micro-nuke Launcher Sigix Terminator Sigix Containment Pod Peak State ------------ > --- POWER ------------ Antimatter Reactor Quantum Reactor > --- PROPULSION ------- Enhanced Biometal Leg Enhanced Biometal Leg High-density Centrium Leg High-density Centrium Leg > --- UTILITY ---------- Large Storage Unit Large Storage Unit High-capacity Storage Unit High-capacity Storage Unit Advanced Signal Interpreter Experimental Targeting Computer Experimental Targeting Computer Improved Armor Integrity Analyzer Experimental Phase Shifter Improved Weapon Shielding Layered Medium Armor Plating Experimental Hacking Suite Relay Coupler [Sentry] > --- WEAPON ----------- Sigix Broadsword > --- INVENTORY -------- Quantum Reactor Improved Heavy Siege Treads Experimental Power Amplifier Advanced Cooling System Matter Compressor Long-range Sensor Array Advanced Transmission Jammer Advanced Transmission Jammer Layered Heavy Armor Plating EM Dispersion Field Improved Energy Mantle Relay Coupler [NC] Relay Coupler [Sentry] High-powered Tractor Beam Transdimensional Reconstructor High-powered Transdimensional Reconstructor EMDS EMDS Nova Cannon Linked Autogun Multirail Micro-nuke Launcher Sigix Terminator Advanced Remote Datajack Sigix Containment Pod [Rating: 163] Favorites ----------- Power Micro Fission Core Engine Reinforced Deuterium Engine Power Core Micro Fission Core Reactor Heavy Antimatter Reactor Propulsion Light Treads Treads Light Treads Leg Flexi-carbon Leg Wheel Armored Wheel Flight Unit Cooled Cesium-ion Thruster Utility High-capacity Storage Unit Device Improved Weapon Cycler Storage High-capacity Storage Unit Processor Advanced Targeting Computer Hackware Relay Coupler [Grunt] Protection Improved Medium Armor Plating Weapon Enhanced Autogun Energy Cannon Advanced Plasma Cannon Ballistic Gun Enhanced Autogun Ballistic Cannon Hypervelocity Mass Driver Launcher Proton Missile Launcher Special Weapon Improved Remote Datajack Slashing Weapon Sigix Broadsword Piercing Weapon Spear Build | -11 -10 -10 -10 -9 -8 -8 -7 -7 -7 -7 -6 -6 -6 -6 -5 -5 -5 -5 -5 -4 -4 -4 -4 -3 -3 ------- Run | Scr Mat Min Exi Min Mat Gar Fac Gar Fac Gar Fac Low Low Dat Pro Fac Gar Fac Gar Fac Gar Fac Gar Res Qua Slots Evolved 14 | . . . . . 4 . 2 . . . 2 . . . . 2 . . . 2 . . . 2 . Power 1 | . . . . . . . . . . . . . . . . 1 . . . . . . . . . Propulsion 2 | . . . . . 2 . . . . . . . . . . . . . . . . . . . . Utility 11 | . . . . . 2 . 2 . . . 2 . . . . 1 . . . 2 . . . 2 . Weapon . | . . . . . . . . . . . . . . . . . . . . . . . . . . Parts Attached 648 | 6 10 . . 1 44 13 16 4 15 56 43 6 22 16 10 15 47 19 19 53 26 28 23 45 111 Power 37 | 1 3 . . 1 1 1 1 . . 1 1 . 2 . 1 2 4 1 1 5 1 . . 2 8 Engine 8 | 1 2 . . 1 1 . 1 . . 1 . . 1 . . . . . . . . . . . . Core 15 | . 1 . . . . 1 . . . . 1 . 1 . . 2 3 1 1 2 . . . . 2 Reactor 14 | . . . . . . . . . . . . . . . 1 . 1 . . 3 1 . . 2 6 Propulsion 133 | 2 2 . . . 20 3 4 2 5 13 7 1 5 1 3 2 21 . 3 5 8 8 2 4 12 Treads 74 | 2 2 . . . 16 3 4 2 4 6 5 1 . . 1 2 11 . 2 4 . 3 2 3 1 Leg 42 | . . . . . 4 . . . . 2 . . 5 1 2 . 10 . . 1 8 3 . . 6 Wheel 16 | . . . . . . . . . 1 5 1 . . . . . . . 1 . . 2 . 1 5 Hover . | . . . . . . . . . . . . . . . . . . . . . . . . . . Flight 1 | . . . . . . . . . . . 1 . . . . . . . . . . . . . . Utility 214 | 1 2 . . . 12 1 7 . 6 19 15 2 4 6 2 7 15 13 4 13 5 8 6 23 43 Device 86 | . . . . . 3 1 1 . . 8 4 1 1 1 1 3 3 5 1 7 4 4 2 11 25 Storage 19 | 1 2 . . . 5 . . . . 2 . . 1 1 . 1 2 . . 1 . . . 1 2 Processor 16 | . . . . . 1 . 4 . . . . . . 2 1 . . 2 . . . 1 . 1 4 Hackware 40 | . . . . . . . . . 2 6 6 . 1 . . . 7 5 1 1 1 2 3 4 1 Protection 53 | . . . . . 3 . 2 . 4 3 5 1 1 2 . 3 3 1 2 4 . 1 1 6 11 Artifact . | . . . . . . . . . . . . . . . . . . . . . . . . . . Weapon 264 | 2 3 . . . 11 8 4 2 4 23 20 3 11 9 4 4 7 5 11 30 12 12 15 16 48 Energy Gun . | . . . . . . . . . . . . . . . . . . . . . . . . . . Energy Cannon 42 | . . . . . . . . . . 1 4 . . . 2 1 1 . . 2 2 4 4 4 17 Ballistic Gun 87 | 2 3 . . . 8 2 4 1 2 13 9 2 6 2 2 2 2 2 7 9 . . . . 9 Ballistic Cannon 49 | . . . . . 2 3 . . . . . . . . . 1 . . . 7 7 5 6 5 13 Launcher 15 | . . . . . . 2 . 1 . . . . 3 2 . . 1 . . 2 1 . 1 1 1 Special Weapon 57 | . . . . . . . . . 2 5 6 1 1 2 . . 2 3 4 10 2 3 4 6 6 Impact Weapon . | . . . . . . . . . . . . . . . . . . . . . . . . . . Slashing Weapon 2 | . . . . . . . . . . . . . . . . . . . . . . . . . 2 Piercing Weapon 12 | . . . . . 1 1 . . . 4 1 . 1 3 . . 1 . . . . . . . . Special Melee Weapon . | . . . . . . . . . . . . . . . . . . . . . . . . . . Unidentified Prototypes 9 | . . . . . 1 . . . . . 2 . . . . . . . . . . . . . 6 Parts Lost 56 | . 1 . . . 8 4 . . 1 5 . . 3 1 2 3 2 . . 5 . . . 1 20 Power 10 | . . . . . 1 1 . . . . . . 2 . . . . . . . . . . . 6 Propulsion 16 | . . . . . 4 2 . . 1 3 . . . 1 2 . 1 . . 1 . . . . 1 Utility 21 | . . . . . 1 . . . . 1 . . . . . 2 1 . . 4 . . . 1 11 Weapon 9 | . 1 . . . 2 1 . . . 1 . . 1 . . 1 . . . . . . . . 2 Highest Loss Streak 7 | . 1 . . . 3 4 . . 1 2 . . 1 1 1 1 1 . . 2 . . . 1 7 Average Slot Usage (%) 97 | . 99 100 100 99 98 99 95 92 91 99 99 92 93 99 99 99 99 100 99 91 97 99 99 97 92 Engine 2 | . 10 . . 1 8 1 5 7 7 7 2 . 2 . . . . . . . . . . . . Core 4 | . 3 14 14 12 . 7 1 . . . 3 6 3 6 1 4 10 11 11 6 5 5 5 1 3 Reactor 1 | . . . . . . . . . . . . . . . 4 5 . . . 3 5 5 5 6 4 Treads 16 | . 28 28 28 28 29 35 30 30 26 16 15 26 3 . 1 10 8 23 22 15 6 7 18 12 4 Leg 5 | . . . . . 6 . . . . 1 . . 22 25 24 11 13 . . . 12 11 . . 6 Wheel 2 | . . . . . . . . . 1 12 10 . . . . . . . . . . 2 2 2 3 Device 7 | . . . . . 5 9 3 . . 3 9 11 12 6 6 6 7 8 5 15 23 16 14 12 5 Storage 20 | . 27 28 28 28 27 27 23 23 23 23 20 20 20 20 20 17 19 17 17 16 15 15 15 14 17 Processor 7 | . . . . . 1 . 9 7 7 7 6 6 6 12 13 11 10 10 11 7 5 9 10 14 13 Hackware 5 | . . . . . . . . . . 3 8 1 . 3 . . 5 11 5 8 10 10 10 17 18 Protection 5 | . . . . . 1 . 5 7 7 6 6 6 6 9 13 15 6 1 9 6 2 2 5 1 4 Energy Cannon 1 | . . . . . . . . . . 1 . 1 . . 2 3 2 . . . 2 2 2 1 1 Ballistic Gun 8 | . 28 28 28 28 11 9 14 14 14 9 10 11 12 3 10 3 1 7 9 4 . . . . . Ballistic Cannon 1 | . . . . . 5 7 . . . . . . . . . 2 1 . . 2 7 3 5 4 3 Special Weapon 1 | . . . . . . . . . . 2 1 . . 3 . . 4 2 1 . . 3 1 2 . Naked Turns . | . . . . . . . . . . . . . . . . . . . . . . . . . . Heaviest Build 173 | 13 57 57 57 59 101 102 121 121 129 129 123 125 123 110 124 139 126 117 119 161 162 157 165 160 173 Greatest Support 145 | 40 40 40 40 40 84 80 80 80 80 80 112 112 112 88 88 79 92 92 92 121 121 90 113 140 145 Greatest Overweight (x) 9 | . 1 1 1 1 5 1 1 1 4 9 4 1 2 1 1 2 4 1 1 1 4 3 2 7 6 Average Overweight (x) 1 | . . 1 1 1 . 1 1 1 1 3 3 1 1 1 1 1 1 1 1 1 1 1 1 4 1 Largest Inventory Capacity 32 | 6 18 18 18 18 26 26 26 26 26 26 26 26 26 26 26 26 26 26 26 26 26 26 26 26 32 Average Capacity 25 | 5 17 18 18 18 25 26 26 26 26 26 26 26 26 26 26 26 26 26 26 26 26 26 26 26 30 Most Carried 32 | 4 18 18 18 18 26 26 26 26 26 26 26 26 26 26 26 26 26 26 26 26 26 26 26 26 32 Average Carried 25 | 3 15 18 18 17 23 24 25 25 25 25 25 25 25 23 25 25 25 25 25 25 25 25 25 25 29 Final Capacity 32 | 6 18 18 18 18 26 26 26 26 26 26 26 26 26 26 26 26 26 26 26 26 26 26 26 26 32 Final Carried 27 | 4 18 18 18 18 26 26 26 26 26 26 26 26 26 25 25 26 26 25 26 26 26 26 26 25 27 Class Distribution -------------------- 24% | Botlord-Mutant 22% | Hauler-Mutant 19% | Commander-Mutant 15% | Scavenger-Mutant 11% | Bothacker-Mutant 6% | Mutant Dominant Class ---------------- Mutant | -10/Materials Mutant | -10/Mines Mutant | -10/Exiles Mutant | -9/Mines Hauler-Mutant | -8/Materials Hauler-Mutant | -8/Garrison Hauler-Mutant | -7/Factory Bothacker-Mutant | -7/Garrison Hauler-Mutant | -7/Factory Commander-Mutant | -7/Garrison Commander-Mutant | -6/Factory Hauler-Mutant | -6/Lower Caves Scavenger-Mutant | -6/Lower Caves Scavenger-Mutant | -6/Data Miner Scavenger-Mutant | -5/Proximity Caves Scavenger-Mutant | -5/Factory Commander-Mutant | -5/Garrison Commander-Mutant | -5/Factory Bothacker-Mutant | -5/Garrison Botlord-Mutant | -4/Factory Botlord-Mutant | -4/Garrison Botlord-Mutant | -4/Factory Botlord-Mutant | -4/Garrison Botlord-Mutant | -3/Research Botlord-Mutant | -3/Quarantine Resources | -11 -10 -10 -10 -9 -8 -8 -7 -7 -7 -7 -6 -6 -6 -6 -5 -5 -5 -5 -5 -4 -4 -4 -4 -3 -3 ----------- Run | Scr Mat Min Exi Min Mat Gar Fac Gar Fac Gar Fac Low Low Dat Pro Fac Gar Fac Gar Fac Gar Fac Gar Res Qua Matter Collected 18988 | 350 734 109 . 109 1559 673 666 325 405 1353 709 236 520 190 484 352 899 405 543 1595 831 402 810 948 3781 Remotely . | . . . . . . . . . . . . . . . . . . . . . . . . . . Salvage Created 23255 | 198 825 120 . 188 2227 511 958 558 852 2109 599 222 766 311 595 651 575 29 703 2298 931 160 578 1139 5152 Parts 1051 | 13 51 8 . 15 139 21 40 31 34 79 20 17 32 7 20 31 26 3 29 100 30 7 20 46 232 Haulers Intercepted 21 | . 2 . . . 6 . 3 . 1 . 3 . . . . 1 . . . 2 . . . 2 1 Recyclers Shooed 21 | . 2 . . . 3 . 4 . 1 . 2 . . . . . . . . 4 . 2 . 3 . Parts Field Recycled . | . . . . . . . . . . . . . . . . . . . . . . . . . . Retrieved Matter . | . . . . . . . . . . . . . . . . . . . . . . . . . . Parts Self-Destructed 52 | . . . . . . . . . . . . 20 14 . 18 . . . . . . . . . . Prevented 20 | . . . . . . . . . . . . . 20 . . . . . . . . . . . . Kills | -11 -10 -10 -10 -9 -8 -8 -7 -7 -7 -7 -6 -6 -6 -6 -5 -5 -5 -5 -5 -4 -4 -4 -4 -3 -3 ------- Run | Scr Mat Min Exi Min Mat Gar Fac Gar Fac Gar Fac Low Low Dat Pro Fac Gar Fac Gar Fac Gar Fac Gar Res Qua Combat Hostiles Destroyed 332 | . 12 2 . 5 32 17 5 13 7 31 . 3 12 4 8 14 11 1 10 34 20 . 11 13 67 Melee 7 | . 1 . . . . . . . . . . . . . . 1 1 . . . . . . . 4 Guns 172 | . 11 2 . 5 31 8 5 9 7 31 . 3 5 . 8 3 . 1 10 11 . . . . 22 Cannons 104 | . . . . . 1 9 . . . . . . . . . 10 4 . . 17 11 . 8 10 34 AOE 27 | . . . . . . . . 4 . . . . 4 . . . 3 . . 5 5 . 2 3 1 Classes Destroyed 21 | 3 6 . . 1 3 . 1 1 . . . 2 1 1 . . 1 . . . . . . . 1 Worker 18 | 1 . 1 . 2 4 . 1 . 2 . 1 . . . . . . . . 2 . . . 2 2 Builder 7 | . 1 . . . . . . . . . . . . . . 1 . . . 1 . 1 . 2 1 Tunneler 5 | 4 . . . . 1 . . . . . . . . . . . . . . . . . . . . Hauler 21 | . 2 . . . 6 . 3 . 1 . 3 . . . . 1 . . . 2 . . . 2 1 Recycler 27 | 1 3 . . . 2 . 7 . 4 . 2 . . . . . . . . 4 . 1 . 1 2 Minesweeper 1 | . . . . . . . . . . . . . . 1 . . . . . . . . . . . Operator 7 | . 1 . . . 1 . 1 . . . 1 . . . . . . . . 1 . . . . 2 Watcher 11 | . 2 . . . 4 . 1 . . . . . . . . 1 . . . . . . 1 . 2 Swarmer 61 | . 3 . . 3 . 3 1 4 . 6 . . 1 . 4 4 4 1 5 4 9 . 3 3 3 Saboteur 2 | . . . . . . . . . . . . . . . . . 1 . . 1 . . . . . Grunt 134 | . 9 2 . 1 20 8 . 5 2 20 . 1 7 . 2 6 3 . . 14 8 . 6 . 20 Brawler 9 | . . . . . 1 . . . 1 2 . . . . . 1 . . . 1 . . . 1 2 Duelist 9 | . . . . 1 1 . . . 1 2 . . . . . . . . . . 2 . 1 . 1 Sentry 23 | . . . . . 8 2 1 2 2 1 . . 1 . 1 . 2 . 2 1 . . . . . Specialist 8 | . . . . . . . . 1 . . . . . . . . 1 . 2 . . . 1 . 3 Hunter 26 | . . . . . 2 4 . 1 . 1 . . 2 . 1 1 1 . 1 4 . . . 2 6 Programmer 37 | . . . . . . . 3 . 1 . . 1 1 . . 2 . . . 9 . . . 4 16 Behemoth 2 | . . . . . . . . . . . . 1 . . . . . . . . 1 . . . . Enhanced Grunt 4 | . . . . . . . . . . . . . . 4 . . . . . . . . . . . Lightning 3 | . . . . . . . . . . . . . . . . . . . . . . . . . 3 Tracker 8 | . . . . . . . . . . . . . . . . . . . . . . . . 1 7 Combat Programmer 8 | . . . . . . . . . . . . . . . . . . . . . . . . 2 6 Alpha 7 1 | . . . . . . . . . . . . . . . . . . . . . . . . . 1 Samaritan 1 | . . . . . . . . . . . . 1 . . . . . . . . . . . . . Tinkerer 1 | . . . . . . . . . . . . . 1 . . . . . . . . . . . . Best Kill Streak 10 | 3 4 2 . 4 5 4 3 4 4 6 2 1 3 4 4 4 4 1 7 8 10 1 5 6 7 Combat Bots Only 10 | . 3 2 . 3 5 4 1 4 4 6 . 1 3 4 4 4 4 1 7 7 10 . 5 3 6 Max Kills in Single Turn 4 | 1 1 1 . 2 2 1 1 3 1 2 1 1 2 1 2 2 2 1 2 3 3 1 2 4 2 Gunslinging 1 | . . . . . 1 . . . . . . . . . . . . . 1 1 . . . . . Exploded 3 | . . . . . . . . 3 . . . . 2 . . . 2 . . 3 3 . 2 3 1 Melee 1 | . 1 . . . . . . . . . . . . . . 1 1 . . . . . . . 1 Uniques/NPCs Destroyed . | . . . . . . . . . . . . . . . . . . . . . . . . . . Combat | -11 -10 -10 -10 -9 -8 -8 -7 -7 -7 -7 -6 -6 -6 -6 -5 -5 -5 -5 -5 -4 -4 -4 -4 -3 -3 -------- Run | Scr Mat Min Exi Min Mat Gar Fac Gar Fac Gar Fac Low Low Dat Pro Fac Gar Fac Gar Fac Gar Fac Gar Res Qua Damage Taken 25459 | . 680 52 . 138 1853 1208 212 800 755 1673 274 508 1228 367 531 1296 963 225 503 1987 677 41 787 1028 7673 Core 2331 | . 114 . . . 164 116 7 36 25 162 20 25 94 46 18 182 146 48 66 79 35 22 76 69 781 Absorbed by Shields 3642 | . . . . . 72 296 28 . . 400 . . . . . . 108 . 244 499 400 . 567 248 780 Reduced by Siege Mode 150 | . . . . . . . . . . . . . . . . . . . . 27 22 . . 6 95 Core Remaining (%) 68 | 100 . . . 54 . 49 . . . 67 . . . . 76 . . . 55 . . . 81 . . Volleys Fired 1719 | 15 66 7 . 17 176 66 58 40 38 165 58 24 48 7 87 51 81 31 49 120 71 30 48 89 277 Largest 2 | 2 2 2 . 2 2 2 2 2 2 2 2 2 2 1 2 2 1 2 2 2 2 2 2 2 2 Hottest 201 | 40 40 40 . 40 88 88 53 50 53 98 123 123 56 39 98 155 81 66 66 113 154 132 201 132 132 Shots Fired 2599 | 30 131 14 . 33 351 123 116 77 71 255 87 44 80 7 105 80 81 39 79 166 100 31 78 100 321 Gun 1558 | 30 131 14 . 33 339 56 116 75 66 190 57 39 65 . 36 8 . 17 69 90 . . . . 127 Cannon 753 | . . . . . 12 64 . . . 35 10 1 . . 69 72 25 . . 51 92 19 61 66 176 Launcher 41 | . . . . . . 3 . 2 . . . . 13 5 . . 9 . . 4 2 . 1 1 1 Special 247 | . . . . . . . . . 5 30 20 4 2 2 . . 47 22 10 21 6 12 16 33 17 Kinetic 1975 | 30 131 14 . 33 351 120 116 75 66 190 57 39 65 . 36 34 9 17 69 137 51 2 54 30 249 Thermal 230 | . . . . . . . . . . 35 10 1 . . 69 46 . . . 1 . 17 3 34 14 Explosive 11 | . . . . . . . . 2 . . . . . . . . . . . 4 2 . 1 1 1 Electromagnetic 136 | . . . . . . 3 . . . . . . 13 5 . . 25 . . 3 41 . 4 2 40 Robot Hit Streak 53 | 8 10 8 . 10 21 16 20 19 19 24 19 18 20 24 27 21 28 22 41 53 46 7 20 35 41 Robot Miss Streak 6 | 1 5 3 . 1 6 5 2 1 2 5 2 1 2 . 3 1 1 1 1 2 2 2 3 1 3 Penetration Max 2 | . . . . . . . . . . . 1 . 1 . 1 1 . 1 1 1 1 . . 1 2 Secondary Targets 19 | . 1 . . . 6 1 . . . 6 . . . . 1 . . . 1 3 . . . . . Max Gunslinging Chain 1 | . 1 . . . 1 1 . . . 1 . . . . 1 . . . 1 1 . . . . . Shots Hit Robots 1911 | 19 76 9 . 21 251 93 87 56 62 202 63 40 62 6 35 44 72 29 63 141 74 18 47 80 261 Core Hits 897 | 7 33 5 . 11 107 60 31 25 56 106 16 13 26 7 17 25 17 4 23 86 29 3 12 26 152 Critical Hits 183 | 1 . . . . 3 . . 1 . 2 1 . 2 . 2 2 2 2 7 15 33 1 21 16 72 Critical Kills 74 | . . . . . 3 . . 1 . . 1 . 1 . 1 1 1 . 3 8 6 . 8 6 34 Critical Parts Destroyed 95 | 1 . . . . . . . . . 2 . . 1 . 1 1 1 1 3 7 18 1 11 10 37 Melee Attacks 58 | . . . . . 1 7 . . . 29 4 . 2 2 . . 3 . . . . . . . 10 Impact . | . . . . . . . . . . . . . . . . . . . . . . . . . . Slashing 10 | . . . . . . . . . . . . . . . . . . . . . . . . . 10 Piercing 48 | . . . . . 1 7 . . . 29 4 . 2 2 . . 3 . . . . . . . . Sneak Attacks 8 | . . . . . 1 . . . . 2 . . 1 2 . . 1 . . . . . . . 1 Combat Hostiles 3 | . . . . . . . . . . 1 . . . . . . 1 . . . . . . . 1 Follow-up Attacks . | . . . . . . . . . . . . . . . . . . . . . . . . . . Damage Inflicted 46684 | 276 924 140 . 235 3637 1309 1507 1305 1247 4404 907 730 2071 330 970 1808 1146 416 1225 6384 2411 237 1119 2128 9818 Guns 24121 | 276 920 140 . 235 3391 485 1507 954 1247 2582 805 695 1077 . 683 161 . 416 1225 2392 . . . . 4930 Cannons 15111 | . . . . . 166 824 . . . . 102 35 . . 287 1641 582 . . 2784 1774 237 769 1894 4016 Explosions 4264 | . . . . . . . . 351 . . . . 797 119 . . 413 . . 1208 637 . 320 213 206 Melee 3099 | . . . . . 80 . . . . 1822 . . 197 211 . . 151 . . . . . . . 638 Ramming 89 | . 4 . . . . . . . . . . . . . . 6 . . . . . . 30 21 28 Kinetic 33075 | 276 920 140 . 235 3557 1309 1507 954 1247 2582 805 695 1077 . 683 1092 142 416 1225 5043 841 22 661 546 7100 Thermal 2937 | . . . . . . . . . . . 102 35 33 . 287 710 128 . . . 82 215 . 1259 86 Explosive 2853 | . . . . . . . . 351 . . . . . . . . . . . 1208 555 . 320 213 206 Electromagnetic 4631 | . . . . . . . . . . . . . 764 119 . . 725 . . 133 933 . 108 89 1760 Impact . | . . . . . . . . . . . . . . . . . . . . . . . . . . Slashing 638 | . . . . . . . . . . . . . . . . . . . . . . . . . 638 Piercing 2461 | . . . . . 80 . . . . 1822 . . 197 211 . . 151 . . . . . . . . Highest Corruption 44 | . 2 2 2 2 . . 1 1 1 1 . . . . . 1 1 1 1 7 7 7 9 6 44 Average Corruption 4 | . 1 2 2 2 . . 1 1 1 1 . . . . . 1 1 1 1 5 7 7 8 5 14 Corruption Purged 3 | . . . . . . . . . . . . . . . . . . . . . . . . . 3 Effects 482 | . 1 2 2 13 . . 2 2 3 21 . . . . . . 10 8 4 33 57 23 76 18 207 Message Errors 105 | . . . 1 7 . . . . 1 9 . . . . . . 2 5 1 6 9 2 21 4 37 Matter Fused 79 | . . . . . . . . . . . . . . . . . . . . 10 11 4 13 4 37 Heat Flow Errors 50 | . 1 . . 3 . . . . . . . . . . . . . . . 4 8 4 12 1 17 Energy Discharges 51 | . . 1 . 1 . . 2 . . 1 . . . . . . 4 1 . 5 10 5 6 1 14 Parts Rejected 3 | . . . . . . . . . . . . . . . . . . . . 1 . . . . 2 Data Loss (minor) 46 | . . 1 1 1 . . . 1 1 4 . . . . . . 2 2 2 3 7 3 8 . 10 Data Loss (major) 13 | . . . . . . . . . . . . . . . . . . . . . 3 1 4 1 4 Misfires 12 | . . . . . . . . . . . . . . . . . . . . 1 3 1 5 . 2 Alerts 1 | . . . . . . . . . . . . . . . . . . . . . . . . . 1 Misdirections 19 | . . . . . . . . . . . . . . . . . . . . . . . . . 19 Targeting Errors 87 | . . . . . . . . 1 1 7 . . . . . . 2 . . 3 4 2 6 4 57 Weapon Failures 16 | . . . . 1 . . . . . . . . . . . . . . 1 . 2 1 1 3 7 Overload Shots . | . . . . . . . . . . . . . . . . . . . . . . . . . . Overflow Damage 714 | . . . . . . . . 1 . 112 . . 35 . 42 70 36 . . 55 71 10 107 5 170 Projectiles 403 | . . . . . . . . . . . . . . . 42 70 34 . . 41 49 10 . 5 152 Explosions 181 | . . . . . . . . 1 . . . . 35 . . . 2 . . 14 22 . 107 . . Melee 130 | . . . . . . . . . . 112 . . . . . . . . . . . . . . 18 Knockbacks 117 | . . . . . 6 40 . . . . . . . . . 15 . . . 17 4 . 9 6 20 Impact . | . . . . . . . . . . . . . . . . . . . . . . . . . . Kinetic 110 | . . . . . 6 37 . . . . . . . . . 13 . . . 15 4 . 9 6 20 Secondary 7 | . . . . . . 3 . . . . . . . . . 2 . . . 2 . . . . . Self-Inflicted Damage 107 | . . . . . . . . . . . . . 4 . . . 69 . . 20 . . . 10 4 Shots 6 | . . . . . . . . . . . . . 1 . . . 4 . . 1 . . . . . Rammed 6 | . 2 . . . . . . . . . . . . . . . . . . . . . 2 1 1 Targets Rammed 9 | . 3 . . . . . . . . . . . . . . 1 . . . . . . 2 1 2 Kicked 1 | . . . . . . . . . . . . . . . . . . . . . . . . . 1 Crushed 2 | . 1 . . . . . . . . . . . . . . 1 . . . . . . . . . Highest Temperature 346 | . 249 4 . 188 23 177 110 290 128 265 199 90 18 11 298 218 63 59 115 194 245 246 300 346 249 Average Temperature 55 | . 53 4 . 84 7 41 32 76 38 61 40 40 8 8 67 53 27 21 28 38 65 64 76 76 101 Received Heat Transfer 3893 | . 315 27 . 6 645 345 . 222 186 492 54 57 255 48 63 174 187 72 51 214 44 . 65 33 338 Siege Activations 15 | . . . . . . . . . . . . . . . . . . . . 5 3 . . 1 6 Total Turns 327 | . . . . . . . . . . . . . . . . . . . . 78 73 . . 6 170 Longest Duration 83 | . . . . . . . . . . . . . . . . . . . . 23 51 . . 6 83 Robots Corrupted 25 | . . . . . . . . . . . . . 3 4 . . 3 . . 1 4 . 1 . 9 Combat Hostiles 22 | . . . . . . . . . . . . . 3 4 . . 3 . . 1 4 . 1 . 6 Parts Fried 45 | . . . . . . . . . . . . . 6 3 . . 3 . . 3 5 . 2 . 23 Impact Corruptions . | . . . . . . . . . . . . . . . . . . . . . . . . . . Robots Melted . | . . . . . . . . . . . . . . . . . . . . . . . . . . Combat Hostiles . | . . . . . . . . . . . . . . . . . . . . . . . . . . Parts Melted 3 | . . . . . . . . . . . . 1 . . . . . . . . . . . 2 . Heat Transferred 2965 | . . . . . . . . . . . 150 50 . . 400 950 150 . . . 100 185 . 906 74 Parts Sabotaged 3 | . . . . . . . . . . . . . . . . . 3 . . . . . . . . Parts Stolen . | . . . . . . . . . . . . . . . . . . . . . . . . . . Parts Stripped . | . . . . . . . . . . . . . . . . . . . . . . . . . . Power Chain Reactions 6 | . . . . . . . . . . . . . 1 1 . . 3 . . . 1 . . . . Missiles Intercepted . | . . . . . . . . . . . . . . . . . . . . . . . . . . Alert | -11 -10 -10 -10 -9 -8 -8 -7 -7 -7 -7 -6 -6 -6 -6 -5 -5 -5 -5 -5 -4 -4 -4 -4 -3 -3 ------- Run | Scr Mat Min Exi Min Mat Gar Fac Gar Fac Gar Fac Low Low Dat Pro Fac Gar Fac Gar Fac Gar Fac Gar Res Qua Peak Influence 1417 | 30 282 106 . 126 464 719 429 665 373 1417 858 . . . . 451 794 469 717 939 1278 850 1179 866 1069 Initial 743 | . 19 51 . . 48 183 377 78 348 189 743 . . . . . 260 416 162 365 584 670 497 663 132 Average 578 | 11 130 101 . 23 269 497 245 474 269 1168 381 . . . . 146 604 308 597 640 993 703 918 656 417 Maximum Alert Level 4 | . 1 . . . 2 3 2 2 1 4 3 . . . . 2 3 2 3 3 4 3 4 3 3 Low Security (%) 17 | 100 82 100 . 100 30 9 28 8 27 . 3 . . . . 67 . 20 2 . . . . . 33 Level 1 22 | . 17 . . . 46 31 51 24 72 3 58 . . . . 24 8 32 12 26 . . . 7 23 Level 2 28 | . . . . . 23 36 19 66 . 9 28 . . . . 8 58 47 78 23 16 55 28 58 23 Level 3 16 | . . . . . . 22 . . . 17 9 . . . . . 32 . 6 49 31 44 38 33 19 Level 4 14 | . . . . . . . . . . 67 . . . . . . . . . . 51 . 32 . . Level 5 . | . . . . . . . . . . . . . . . . . . . . . . . . . . High Security . | . . . . . . . . . . . . . . . . . . . . . . . . . . Max Security . | . . . . . . . . . . . . . . . . . . . . . . . . . . Squads Dispatched 98 | . 3 . . 1 5 . 7 . 4 . 6 . . . . 2 . 11 . 13 . 2 . 13 31 Investigation 16 | . 1 . . . 3 . 2 . 1 . 1 . . . . 1 . 3 . 1 . . . 1 2 Extermination 20 | . . . . . . . 2 . 1 . 1 . . . . 1 . 2 . 3 . 1 . 2 7 Reinforcement 28 | . 2 . . 1 2 . 1 . 1 . 3 . . . . . . 4 . 5 . . . 3 6 Assault 7 | . . . . . . . . . . . . . . . . . . . . 3 . . . 2 2 Garrison 11 | . . . . . . . 2 . 1 . 1 . . . . . . 2 . 1 . 1 . 2 1 Intercept 16 | . . . . . . . . . . . . . . . . . . . . . . . . 3 13 Construction Impeded 7 | . . . . 1 1 . . . 1 . 1 . . . . . . . . 2 . . . 1 . Haulers Reinforced 6 | . . . . . . . . . . . 2 . . . . . . 1 . 1 . . . 1 1 Alert ID Control Effect 59 | . . . . . . . . . . . . . . . . . . . 2 8 6 3 5 31 4 Stealth | -11 -10 -10 -10 -9 -8 -8 -7 -7 -7 -7 -6 -6 -6 -6 -5 -5 -5 -5 -5 -4 -4 -4 -4 -3 -3 --------- Run | Scr Mat Min Exi Min Mat Gar Fac Gar Fac Gar Fac Low Low Dat Pro Fac Gar Fac Gar Fac Gar Fac Gar Res Qua Distress Signals 26 | . 1 . . 1 4 . 1 . 1 . 3 . . . . 1 . 2 . 3 . 1 . 4 4 Communications Jammed 150 | . . . . . . . . . . . . . . . . . . . . . . . . 150 . Distress Signals 150 | . . . . . . . . . . . . . . . . . . . . . . . . 150 . Times Spotted 659 | . 25 2 . 7 53 17 14 17 14 55 21 8 16 4 9 25 44 22 22 60 30 9 24 56 105 Peak Tracking Total 13 | . 3 2 . 3 5 7 3 4 3 7 4 4 4 3 4 7 5 3 7 7 6 3 7 7 13 Tactical Retreats 23 | . 2 . . . 1 . . . 1 3 1 . 1 . 2 2 . . 1 1 2 . . 1 5 Traps | -11 -10 -10 -10 -9 -8 -8 -7 -7 -7 -7 -6 -6 -6 -6 -5 -5 -5 -5 -5 -4 -4 -4 -4 -3 -3 ------- Run | Scr Mat Min Exi Min Mat Gar Fac Gar Fac Gar Fac Low Low Dat Pro Fac Gar Fac Gar Fac Gar Fac Gar Res Qua Traps Triggered 75 | . 3 . . . 1 4 2 5 1 16 . . . 3 . . 12 . 7 1 10 4 5 . 1 Indirectly 3 | . . . . . . . . . . . . . . 3 . . . . . . . . . . . Trap Hack Attempts . | . . . . . . . . . . . . . . . . . . . . . . . . . . Triggered . | . . . . . . . . . . . . . . . . . . . . . . . . . . Disarmed 6 | . . . . . . . . . . . 6 . . . . . . . . . . . . . . Reprogrammed . | . . . . . . . . . . . . . . . . . . . . . . . . . . Reused 3 | . . . . . . . . . . . . . . 3 . . . . . . . . . . . Traps Extracted . | . . . . . . . . . . . . . . . . . . . . . . . . . . Installed 12 | . . . . . . . . . . . . . . 12 . . . . . . . . . . . Triggered 4 | . . . . 1 . . . . . . . 2 1 . . . . . . . . . . . . Machines | -11 -10 -10 -10 -9 -8 -8 -7 -7 -7 -7 -6 -6 -6 -6 -5 -5 -5 -5 -5 -4 -4 -4 -4 -3 -3 ---------- Run | Scr Mat Min Exi Min Mat Gar Fac Gar Fac Gar Fac Low Low Dat Pro Fac Gar Fac Gar Fac Gar Fac Gar Res Qua Machines Disabled 59 | . . . . . . 2 . 3 . 6 5 . . . . 2 5 5 4 6 5 2 7 2 5 Max in Single Turn 2 | . . . . . . 1 . 1 . 1 . . . . . 1 1 . 1 1 1 . 2 . 1 Garrison Access 8 | . . . . . . . 1 . . . 2 . . . . . . . . 1 . 1 . 2 1 Garrison Relay 27 | . . . . . . 2 . 3 . 5 . . . . . . 4 . 4 . 4 . 5 . . Phase Generator 1 | . . . . . . . . . . . . . . . . . . . . . . . 1 . . Machines Sabotaged . | . . . . . . . . . . . . . . . . . . . . . . . . . . Garrisons Compromised . | . . . . . . . . . . . . . . . . . . . . . . . . . . Overloaded Fab Kills . | . . . . . . . . . . . . . . . . . . . . . . . . . . Fab Network Shutdowns 1 | . . . . . . . . . . . . . . . . . . . . . . . . 1 . Hacking | -11 -10 -10 -10 -9 -8 -8 -7 -7 -7 -7 -6 -6 -6 -6 -5 -5 -5 -5 -5 -4 -4 -4 -4 -3 -3 --------- Run | Scr Mat Min Exi Min Mat Gar Fac Gar Fac Gar Fac Low Low Dat Pro Fac Gar Fac Gar Fac Gar Fac Gar Res Qua Machines Accessed 93 | . 5 . 1 . 15 . 5 . 3 . 14 . . 4 . 3 . 8 . 7 . 5 . 10 13 Terminals 54 | . 5 . . . 11 . 1 . 1 . 11 . . . . 2 . 4 . 3 . 1 . 5 10 Fabricators 6 | . . . . . . . 1 . 1 . . . . . . . . 3 . . . . . 1 . Repair Stations 6 | . . . . . 1 . . . . . 1 . . . . . . . . 2 . 1 . 1 . Recycling Units 3 | . . . . . 1 . 1 . . . . . . . . . . . . . . 1 . . . Scanalyzers 4 | . . . . . 1 . . . . . . . . . . . . . . . . . . 1 2 Garrison Access 15 | . . . . . 1 . 2 . 1 . 2 . . . . 1 . 1 . 2 . 2 . 2 1 Total Hacks 261 | . 17 . 4 . 49 . 17 . 5 . 31 . . 27 . 5 . 24 . 16 . 12 . 28 26 Successful 149 | . 9 . 4 . 30 . 7 . 1 . 15 . . 27 . 3 . 11 . 7 . 6 . 17 12 Failed 112 | . 8 . . . 19 . 10 . 4 . 16 . . . . 2 . 13 . 9 . 6 . 11 14 Catastrophic 19 | . . . . . 4 . 2 . 1 . 4 . . . . . . 1 . 2 . 1 . 3 1 Database Lockouts . | . . . . . . . . . . . . . . . . . . . . . . . . . . Manual 107 | . 6 . . . 34 . 13 . 1 . 13 . . . . 2 . 7 . 7 . 3 . 12 9 Terminals 138 | . 17 . . . 38 . 3 . 2 . 24 . . . . 3 . 9 . 7 . 1 . 15 19 Fabricators 16 | . . . . . . . 4 . 1 . . . . . . . . 9 . . . . . 2 . Repair Stations 17 | . . . . . 2 . . . . . 3 . . . . . . . . 4 . 4 . 4 . Recycling Units 8 | . . . . . 1 . 3 . . . . . . . . . . . . . . 4 . . . Scanalyzers 13 | . . . . . 6 . . . . . . . . . . . . . . . . . . 2 5 Garrison Access 38 | . . . . . 2 . 7 . 2 . 4 . . . . 2 . 6 . 5 . 3 . 5 2 Terminal Hacks 76 | . 9 . 4 . 9 . 1 . . . 8 . . 27 . 1 . 3 . . . . . 8 6 Record 16 | . . . 4 . . . . . . . . . . 11 . . . . . . . . . . 1 Part Schematic 11 | . . . . . 1 . . . . . 1 . . 7 . . . . . . . . . 1 1 Robot Schematic 7 | . 1 . . . . . . . . . . . . 6 . . . . . . . . . . . Robot Analysis 4 | . 3 . . . . . . . . . 1 . . . . . . . . . . . . . . Prototype ID Bank 6 | . . . . . 3 . . . . . . . . 3 . . . . . . . . . . . Open Door 3 | . . . . . . . . . . . . . . . . . . . . . . . . 1 2 Branch Access Points 1 | . . . . . . . . . . . 1 . . . . . . . . . . . . . . Terminal Index 1 | . . . . . . . . . . . 1 . . . . . . . . . . . . . . Fabricator Index 1 | . . . . . . . . . . . 1 . . . . . . . . . . . . . . Unreport Threat 12 | . . . . . 2 . 1 . . . 2 . . . . . . 1 . . . . . 5 1 Locate Traps 4 | . 2 . . . . . . . . . . . . . . 1 . 1 . . . . . . . Disarm Traps 1 | . . . . . . . . . . . 1 . . . . . . . . . . . . . . Recall Assault 1 | . . . . . . . . . . . . . . . . . . . . . . . . 1 . Hauler Manifests 2 | . . . . . 1 . . . . . . . . . . . . . . . . . . . 1 Registered Prototypes 1 | . . . . . . . . . . . . . . . . . . 1 . . . . . . . Zone Layout 5 | . 3 . . . 2 . . . . . . . . . . . . . . . . . . . . Fabricator Hacks 9 | . . . . . . . 2 . . . . . . . . . . 5 . . . . . 2 . Load Schematic 4 | . . . . . . . . . . . . . . . . . . 3 . . . . . 1 . Build 5 | . . . . . . . 2 . . . . . . . . . . 2 . . . . . 1 . Repair Station Hacks 10 | . . . . . 2 . . . . . 2 . . . . . . . . 2 . 2 . 2 . Scan Component 5 | . . . . . 1 . . . . . 1 . . . . . . . . 1 . 1 . 1 . Repair 5 | . . . . . 1 . . . . . 1 . . . . . . . . 1 . 1 . 1 . Recycling Unit Hacks 1 | . . . . . . . . . . . . . . . . . . . . . . 1 . . . Retrieve Components 1 | . . . . . . . . . . . . . . . . . . . . . . 1 . . . Scanalyzer 9 | . . . . . 6 . . . . . . . . . . . . . . . . . . 1 2 Insert Component 6 | . . . . . 3 . . . . . . . . . . . . . . . . . . 1 2 Analyze 3 | . . . . . 3 . . . . . . . . . . . . . . . . . . . . Garrison Access Hacks 15 | . . . . . 1 . 2 . 1 . 3 . . . . 1 . 1 . 2 . 2 . 1 1 Unlock Access 7 | . . . . . 1 . 1 . 1 . . . . . . 1 . 1 . 1 . 1 . . . Seal Access 7 | . . . . . . . 1 . . . 2 . . . . . . . . 1 . 1 . 1 1 Coupler Status 1 | . . . . . . . . . . . 1 . . . . . . . . . . . . . . Unauthorized Hacks 28 | . . . . . 11 . 2 . . . 2 . . . . 1 . 2 . 3 . 1 . 3 3 Terminals 14 | . . . . . 10 . . . . . 1 . . . . . . . . . . . . . 3 Track 4 | . . . . . 2 . . . . . 1 . . . . . . . . . . . . . 1 Assimilate 3 | . . . . . 1 . . . . . . . . . . . . . . . . . . . 2 Botnet 5 | . . . . . 5 . . . . . . . . . . . . . . . . . . . . Detonate 1 | . . . . . 1 . . . . . . . . . . . . . . . . . . . . Operators 1 | . . . . . 1 . . . . . . . . . . . . . . . . . . . . Fabricators 2 | . . . . . . . 1 . . . . . . . . . . 1 . . . . . . . Haulers 1 | . . . . . . . . . . . . . . . . . . 1 . . . . . . . Download 1 | . . . . . . . 1 . . . . . . . . . . . . . . . . . . Repair Stations 4 | . . . . . . . . . . . 1 . . . . . . . . 1 . 1 . 1 . Mechanics 4 | . . . . . . . . . . . 1 . . . . . . . . 1 . 1 . 1 . Recycling Units 1 | . . . . . 1 . . . . . . . . . . . . . . . . . . . . Tunnel 1 | . . . . . 1 . . . . . . . . . . . . . . . . . . . . Scanalyzers . | . . . . . . . . . . . . . . . . . . . . . . . . . . Garrison Access 7 | . . . . . . . 1 . . . . . . . . 1 . 1 . 2 . . . 2 . Reprogram 5 | . . . . . . . 1 . . . . . . . . . . 1 . 1 . . . 2 . Eject 2 | . . . . . . . . . . . . . . . . 1 . . . 1 . . . . . Data Cores Recovered 3 | . . . . . . . . . . . 1 . . . . . . . . . . 1 . . 1 Used 2 | . . . . . . . . . . . 1 . . . . . . . . . . . . . 1 Hacking Detections 78 | . 5 . . . 14 . 5 . 3 . 13 . . . . 2 . 8 . 6 . 3 . 9 10 Full Trace Events 9 | . . . . . 2 . 1 . . . 1 . . . . . . 2 . . . . . 1 2 Feedback Events . | . . . . . . . . . . . . . . . . . . . . . . . . . . Feedback Blocked . | . . . . . . . . . . . . . . . . . . . . . . . . . . Robot Schematics Acquired 8 | . 1 . . . . . 1 . . . . . . 6 . . . . . . . . . . . Robots Built 7 | . . . . . . . 4 . . . . . . . . . . 1 . . . . . 2 . Matter 975 | . . . . . . . 504 . . . . . . . . . . 153 . . . . . 318 . Time 392 | . . . . . . . 268 . . . . . . . . . . 40 . . . . . 84 . Total Robot Build Rating 29 | . . . . . . . 16 . . . . . . . . . . 1 . . . . . 12 . Part Schematics Acquired 14 | . . . . . 4 . . . . . 1 . . 7 . . . . . . . . . 1 1 Parts Built 1 | . . . . . . . . . . . . . . . . . . 1 . . . . . . . Matter 190 | . . . . . . . . . . . . . . . . . . 190 . . . . . . . Time 95 | . . . . . . . . . . . . . . . . . . 95 . . . . . . . Total Part Build Rating 5 | . . . . . . . . . . . . . . . . . . 5 . . . . . . . Parts Repaired 5 | . . . . . 1 . . . . . 1 . . . . . . . . 1 . 1 . 1 . Time 253 | . . . . . 32 . . . . . 44 . . . . . . . . 44 . 89 . 44 . Parts Recycled . | . . . . . . . . . . . . . . . . . . . . . . . . . . Recycled Matter . | . . . . . . . . . . . . . . . . . . . . . . . . . . Retrieved Matter . | . . . . . . . . . . . . . . . . . . . . . . . . . . Retrieved Components 9 | . . . . . . . . . . . . . . . . . . . . . . 9 . . . Parts Scanalyzed 3 | . . . . . 3 . . . . . . . . . . . . . . . . . . . . Part Schematics Acquired 3 | . . . . . 3 . . . . . . . . . . . . . . . . . . . . Parts Damaged . | . . . . . . . . . . . . . . . . . . . . . . . . . . Bothacking | -11 -10 -10 -10 -9 -8 -8 -7 -7 -7 -7 -6 -6 -6 -6 -5 -5 -5 -5 -5 -4 -4 -4 -4 -3 -3 ------------ Run | Scr Mat Min Exi Min Mat Gar Fac Gar Fac Gar Fac Low Low Dat Pro Fac Gar Fac Gar Fac Gar Fac Gar Res Qua Used RIF Installer 7 | . . . . . . 1 . 1 . 1 . . . . . . 1 . 1 . 1 . 1 . . Hotswap 1 | . . . . . . . . . . . . . . . . . 1 . . . . . . . . Command Fork 1 | . . . . . . . . . . . . . . . . . . . . . . . 1 . . Watcher Feeds 1 | . . . . . . . . . . . . . . . . . . . . . 1 . . . . Alert ID Control 1 | . . . . . . . . . . . . . . . . . . . 1 . . . . . . Structural Interface 1 | . . . . . . . . 1 . . . . . . . . . . . . . . . . . Program Shield 1 | . . . . . . . . . . 1 . . . . . . . . . . . . . . . Robots Hacked 130 | . . . . . . . . . 2 12 9 3 1 1 . . 26 14 5 13 4 7 6 18 9 Non-combat 26 | . . . . . . . . . . . 8 . 1 . . . . 7 . 3 . 1 . 4 2 Combat 104 | . . . . . . . . . 2 12 1 3 . 1 . . 26 7 5 10 4 6 6 14 7 Robot Hacks Applied 148 | . . . . . . . . . 3 12 16 3 1 1 . . 26 17 5 15 5 7 6 21 10 parse_system 4 | . . . . . . . . . . 1 . . . 1 . . . 1 . . . . . 1 . no_distress 2 | . . . . . . . . . . . 1 . . . . . . . . . . . . 1 . deconstruct_machine 1 | . . . . . . . . . . . 1 . . . . . . . . . . . . . . ignore_repairs 1 | . . . . . . . . . . . . . . . . . . . . . . . . 1 . drop_inventory 8 | . . . . . . . . . . . 3 . . . . . . 3 . 1 . 1 . . . recall_reinforcements 1 | . . . . . . . . . . . 1 . . . . . . . . . . . . . . purge_threat 10 | . . . . . . . . . . . 4 . . . . . . 3 . 1 . . . 2 . reprogram_traps 1 | . . . . . . . . . . . . . . . . . . . . 1 . . . . . block_reporting 1 | . . . . . . . . . . . . . . . . . . . . . . . . . 1 summon_haulers 2 | . . . . . . . . . . . 1 . . . . . . . . . . . . 1 . map_route 2 | . . . . . . . . . . . 1 . . . . . . . . 1 . . . . . disable_scanner 1 | . . . . . . . . . . . . . . . . . . . . . . . . . 1 find_garrison 2 | . . . . . . . . . 1 . 1 . . . . . . . . . . . . . . scatter_targeting 1 | . . . . . . . . . . . . . . . . . . . . . . . . . 1 disrupt_area 1 | . . . . . . . . . . . . . . . . . . . . . . . 1 . . spike_heat 1 | . . . . . . . . . . . . . . . . . . . . . 1 . . . . amplify_resonance 2 | . . . . . . . . . . . . . . . . . . . . 1 1 . . . . reboot_system 5 | . . . . . . . . . . . . 1 . . . . 2 . . 2 . . . . . overwrite_iff 18 | . . . . . . . . . . 1 . . . . . . 4 1 . 2 2 . 2 4 2 streamctrl_low 2 | . . . . . . . . . . . . . . . . . . 1 . . . . . . 1 streamctrl_high 4 | . . . . . . . . . . 2 . . . . . . 1 . . . 1 . . . . formatsys_low 9 | . . . . . . . . . . . 2 . 1 . . . . 2 . . . . . 1 3 formatsys_high 69 | . . . . . . . . . 2 8 1 2 . . . . 19 6 5 6 . 6 3 10 1 Relay Couplers Released 125 | . . . . . . 9 . 10 . 19 1 . . . . 4 19 . 16 5 15 . 21 3 3 Ejected 4 | . . . . . . . . . . . . . . . . 4 . . . . . . . . . Machine Destruction 114 | . . . . . . 9 . 10 . 19 1 . . . . . 19 . 16 1 15 . 21 3 . Programmers 7 | . . . . . . . . . . . . . . . . . . . . 4 . . . . 3 Attached 35 | . . . . . . . . . 2 6 5 . 1 . . . 7 3 1 1 1 2 3 2 1 Robots Rewired 29 | . . . . . . . . . . 18 . . . . . . 6 . . . . . 5 . . Allies Hacked 4 | . . . . . . . . 1 . . . . . . . . . 1 . . . . . 2 . Hacks Repelled . | . . . . . . . . . . . . . . . . . . . . . . . . . . Allies | -11 -10 -10 -10 -9 -8 -8 -7 -7 -7 -7 -6 -6 -6 -6 -5 -5 -5 -5 -5 -4 -4 -4 -4 -3 -3 -------- Run | Scr Mat Min Exi Min Mat Gar Fac Gar Fac Gar Fac Low Low Dat Pro Fac Gar Fac Gar Fac Gar Fac Gar Res Qua Total Allies 155 | . . . . 3 . . 5 1 2 29 3 2 1 . . . 30 12 5 9 2 6 10 25 10 Largest Group 27 | . . . . 3 . . 3 3 1 26 27 3 2 2 1 . 19 19 5 4 4 6 10 12 6 Highest-Rated Group 615 | . . . . 40 . . 108 108 32 506 516 71 39 32 9 . 615 577 136 188 197 299 474 582 297 Highest-Rated Ally 90 | . . . . 16 . . 38 38 32 38 38 32 29 23 9 . 49 49 81 47 54 58 58 90 64 Total Orders 109 | . . . . . . . . 2 1 12 24 . . 3 . . 6 12 6 . 2 9 10 11 11 STAY 55 | . . . . . . . . 1 1 7 8 . . 1 . . 5 5 4 . 1 5 7 5 5 ROAM 1 | . . . . . . . . . . . 1 . . . . . . . . . . . . . . FOLLOW 40 | . . . . . . . . 1 . 5 10 . . 1 . . 1 5 1 . 1 3 3 6 3 GUARD 1 | . . . . . . . . . . . . . . . . . . . . . . 1 . . . AID 11 | . . . . . . . . . . . 5 . . . . . . 2 1 . . . . . 3 DROP 1 | . . . . . . . . . . . . . . 1 . . . . . . . . . . . Ally Attacks 1051 | . . . . 4 . . 9 22 7 59 202 25 7 . . . 88 166 42 41 21 32 41 232 53 Total Damage 26791 | . . . . 44 . . 274 1025 77 991 4414 669 157 . . . 1628 3439 1119 1044 748 1133 1160 8018 851 Kills 171 | . . . . . . . 4 5 . 8 41 3 1 . . . 7 25 8 8 6 8 5 38 4 Allies Corrupted 8 | . . . . . . . . . . . . . . . . . . 2 . 1 . . 1 1 3 Allies Melted . | . . . . . . . . . . . . . . . . . . . . . . . . . . Intel | -11 -10 -10 -10 -9 -8 -8 -7 -7 -7 -7 -6 -6 -6 -6 -5 -5 -5 -5 -5 -4 -4 -4 -4 -3 -3 ------- Run | Scr Mat Min Exi Min Mat Gar Fac Gar Fac Gar Fac Low Low Dat Pro Fac Gar Fac Gar Fac Gar Fac Gar Res Qua Robot Analysis Total 119 | . 3 . . . . . . . . . 1 . . 115 . . . . . . . . . . . Derelict Logs Recovered 8 | . . 1 . 1 . . . . . . . 2 2 . 2 . . . . . . . . . . Drone Launches . | . . . . . . . . . . . . . . . . . . . . . . . . . . Drone Recoveries . | . . . . . . . . . . . . . . . . . . . . . . . . . . Exploration | -11 -10 -10 -10 -9 -8 -8 -7 -7 -7 -7 -6 -6 -6 -6 -5 -5 -5 -5 -5 -4 -4 -4 -4 -3 -3 ------------- Run | Scr Mat Min Exi Min Mat Gar Fac Gar Fac Gar Fac Low Low Dat Pro Fac Gar Fac Gar Fac Gar Fac Gar Res Qua Turns Passed 41018 | 183 1005 261 427 775 2905 1071 1671 762 1089 5212 2416 1450 2074 651 1656 886 2716 1137 1951 1548 1689 700 1968 1198 3617 Spaces Moved 20963 | 82 420 134 237 394 1298 458 801 361 560 3073 1478 772 1256 372 868 401 1404 536 965 624 821 346 972 521 1809 Core 5 | 5 . . . . . . . . . . . . . . . . . . . . . . . . . Treads 10629 | 77 420 134 237 394 1066 458 801 361 422 344 215 772 121 . . 118 420 536 965 624 282 168 972 200 522 Legs 5266 | . . . . . 232 . . . . . . . 1135 372 868 283 984 . . . 539 178 . . 675 Wheels 5063 | . . . . . . . . . 138 2729 1263 . . . . . . . . . . . . 321 612 Hover . | . . . . . . . . . . . . . . . . . . . . . . . . . . Flight . | . . . . . . . . . . . . . . . . . . . . . . . . . . Fastest Speed 50 | 50 160 180 180 180 150 180 180 180 140 130 130 180 150 150 150 150 150 180 180 180 150 150 180 150 120 Average Speed 161 | 153 178 180 180 180 173 180 180 180 170 138 135 180 153 150 150 172 164 180 180 180 168 164 180 164 142 Slowest Speed 270 | 160 180 180 180 180 270 180 180 180 200 220 180 180 200 150 150 200 240 180 180 180 240 210 200 200 240 Overloaded Moves . | . . . . . . . . . . . . . . . . . . . . . . . . . . Propulsion Burnouts . | . . . . . . . . . . . . . . . . . . . . . . . . . . Robots Hopped . | . . . . . . . . . . . . . . . . . . . . . . . . . . Cave-ins Triggered . | . . . . . . . . . . . . . . . . . . . . . . . . . . Teleports 1 | . . . . . . . . . . . . . . . . . . . . . . . . . 1 Exploration Rate (%) 59 | 5 85 19 58 84 97 57 19 61 21 99 35 88 92 78 86 15 99 16 99 16 97 7 96 21 85 Regions Visited 25 Branch Regions 8 Pre-discovered Areas 32 | . . 1 1 . 1 . . . . . . 1 . 28 . . . . . . . . . . . Known Exits Taken 9 | . . . . . 1 . 1 . 1 . 1 . . . . 1 . 1 . 1 . 1 . 1 . Unknown Exits Taken 9 | 1 1 1 1 1 . . . . . . . 1 1 1 1 . . . . . . . . . . Scrap Searched 12 | . . . . 1 . . . . . . . 7 3 . 1 . . . . . . . . . . Spaces Dug 130 | . . . . . . 1 . . . 7 3 . . . 18 17 1 . . 2 19 8 . 17 37 Terrain Destroyed 433 | . . . . . . 1 . 30 . 7 6 2 1 . 63 32 2 1 4 70 37 12 102 21 42 Melee 1 | . . . . . . 1 . . . . . . . . . . . . . . . . . . . Projectile 178 | . . . . . . . . . . 7 6 2 1 . 63 32 . 1 4 24 . 12 4 9 13 AOE 254 | . . . . . . . . 30 . . . . . . . . 2 . . 46 37 . 98 12 29 Terrain Rammed . | . . . . . . . . . . . . . . . . . . . . . . . . . . Walls Destroyed . | . . . . . . . . . . . . . . . . . . . . . . . . . . Machines Disabled . | . . . . . . . . . . . . . . . . . . . . . . . . . . Actions | -11 -10 -10 -10 -9 -8 -8 -7 -7 -7 -7 -6 -6 -6 -6 -5 -5 -5 -5 -5 -4 -4 -4 -4 -3 -3 --------- Run | Scr Mat Min Exi Min Mat Gar Fac Gar Fac Gar Fac Low Low Dat Pro Fac Gar Fac Gar Fac Gar Fac Gar Res Qua Total 26259 | 106 552 140 238 427 1668 592 963 433 641 3828 1837 810 1347 459 1134 531 1771 680 1104 936 1069 455 1149 770 2619 Wait 1759 | . 16 . . 12 66 28 57 9 12 265 218 1 5 5 161 36 114 80 39 94 93 36 26 91 295 Move 20939 | 81 419 133 236 393 1297 457 800 360 559 3072 1477 771 1255 371 867 400 1402 536 964 624 820 345 971 520 1809 Hop . | . . . . . . . . . . . . . . . . . . . . . . . . . . Pick Up 349 | 4 24 . 1 2 40 9 10 4 6 19 15 4 7 23 4 13 42 7 9 16 10 5 18 12 45 Fast Attach 154 | 6 3 . . . 12 . 5 . 4 15 7 1 3 1 3 4 18 3 3 14 6 10 3 4 29 Attach 132 | . 4 . . 1 15 5 5 . 5 7 9 2 5 1 1 6 6 1 2 13 4 2 2 4 32 Detach 19 | . . . . . 1 . . . 1 1 2 . . . . . 1 . . 6 . 1 . . 6 Swap 363 | . 3 . . . 17 8 6 4 6 34 27 3 14 14 6 5 23 15 14 26 16 16 18 37 51 Drop 413 | . 14 . 1 2 43 6 18 6 10 35 20 4 8 23 5 15 52 7 10 21 17 6 17 12 61 Fire 1719 | 15 66 7 . 17 176 66 58 40 38 165 58 24 48 7 87 51 81 31 49 120 71 30 48 89 277 Melee 58 | . . . . . 1 7 . . . 29 4 . 2 2 . . 3 . . . . . . . 10 Ram 1 | . . . . . . . . . . . . . . . . . . . . . . . . 1 . Kick 2 | . . . . . . . . . . . . . . . . . . . . . . . . . 2 Crush 6 | . 3 . . . . . . . . . . . . . . 1 . . . . . . 2 . . Escape Stasis 179 | . . . . . . 6 4 10 . 66 . . . . . . 29 . 14 2 32 4 10 . 2 Rewire 154 | . . . . . . . . . . 120 . . . . . . . . . . . . 34 . . Trap 12 | . . . . . . . . . . . . . . 12 . . . . . . . . . . . Miscellaneous . | . . . . . . . . . . . . . . . . . . . . . . . . . . Route ------- -11/Scrapyard -10/Materials (discovered 4 exits: [*Mat x2] / [*Min x2]) -10/Mines (discovered 2 exits: [*Mat] / *Exi) -10/Exiles -9/Mines -8/Materials (discovered 4 exits: *Fac x3 / Gar) -8/Garrison (discovered 2 exits: *Fac x2) -7/Factory -7/Garrison (discovered 2 exits: *Fac x2) -7/Factory (discovered 3 exits: [*Sto] / [*Low] / Gar) -7/Garrison (discovered 3 exits: *Fac x3) -6/Factory (discovered 3 exits: *Fac / *Low x2) -6/Lower Caves -6/Lower Caves (discovered 2 exits: *Fac / *Dat) -6/Data Miner -5/Proximity Caves -5/Factory (discovered 4 exits: Fac x3 / Gar) -5/Garrison (discovered 3 exits: *Fac x3) -5/Factory -5/Garrison (discovered 3 exits: *Fac x3) -4/Factory (discovered 2 exits: *Res / Gar) -4/Garrison (discovered 3 exits: *Fac x3) -4/Factory -4/Garrison (discovered 3 exits: *Res x3) -3/Research (discovered 2 exits: Arm / *Qua) -3/Quarantine (discovered 1 exit: *Res) History --------- Turn | Location | Event 7 | -11/Scrapyard | Discovered new exit (range 14) 184 | -11/Scrapyard | Entered Materials 302 | -10/Materials | Build established: Mutant 556 | -10/Materials | Discovered new exit (range 16) 653 | -10/Materials | Discovered new exit (range 13) 946 | -10/Materials | Discovered new exit (range 11) 1038 | -10/Materials | Discovered new exit (range 15) 1189 | -10/Materials | Entered Mines 1270 | -10/Mines | Discovered new exit (range 5) 1347 | -10/Mines | Deemed a non-threat by the Exiles lab entrance 1349 | -10/Mines | Discovered new exit (range 5) 1450 | -10/Mines | Entered Exiles 1501 | -10/Exiles | Met 8R-AWN 1578 | -10/Exiles | Met EX-HEX 1657 | -10/Exiles | Learned location of Zion (-7) 1659 | -10/Exiles | Met EX-DEC 1835 | -10/Exiles | Discovered new exit (range 15) 1877 | -10/Exiles | Entered Mines 1883 | -9/Mines | Met a Derelict bent on vengeance 2065 | -9/Mines | YI-UF0 nonchalantly dropped a Grenade Launcher on the ground 2274 | -9/Mines | Learned Materials terminal intel 2366 | -9/Mines | Assisted by bots powering up and referring to "LRC-V3" 2435 | -9/Mines | Excavation squad dispatched 2435 | -9/Mines | A large section of the Mines collapsed 2569 | -9/Mines | Discovered new exit (range 5) 2652 | -9/Mines | Entered Materials 2652 | -8/Materials | Evolved 4 slots: Propulsion x2, Utility x2 2653 | -8/Materials | Loaded intel: 12 terminal locations 2913 | -8/Materials | Discovered new exit (range 11) 2955 | -8/Materials | Build established: Hauler-Mutant 3244 | -8/Materials | Lost 3 parts (3n) 3837 | -8/Materials | Discovered new exit (range 3) 4097 | -8/Materials | Discovered new exit (range 16) 4632 | -8/Materials | Repaired Shield Generator 5551 | -8/Materials | Identified exit to Garrison 5557 | -8/Materials | Entered Garrison 5624 | -8/Garrison | Triggered checkpoint 5661 | -8/Garrison | Triggered checkpoint 5795 | -8/Garrison | Lost 4 parts (1p2n1w) 5860 | -8/Garrison | Discovered new exit (range 13) 5968 | -8/Garrison | Triggered checkpoint 6077 | -8/Garrison | Garrison Relay disabled 6190 | -8/Garrison | Triggered checkpoint 6298 | -8/Garrison | Triggered checkpoint 6302 | -8/Garrison | Core integrity fell below 50% 6391 | -8/Garrison | Garrison Relay disabled 6449 | -8/Garrison | Discovered new exit (range 10) 6476 | -8/Garrison | Installed Relay Interface Framework 6628 | -8/Garrison | Entered Factory 6628 | -7/Factory | Evolved 2 slots: Utility x2 7756 | -7/Factory | Fabricated P-60 Hacker (x2) 7915 | -7/Factory | Fabricated P-60 Hacker (x2) 8287 | -7/Factory | Identified exit to Garrison 8299 | -7/Factory | Entered Garrison 8299 | -7/Garrison | Accompanied by 3 allies 8308 | -7/Garrison | Expanded RIF knowledge: Structural Interface 8358 | -7/Garrison | Triggered checkpoint 8391 | -7/Garrison | Garrison Relay disabled 8484 | -7/Garrison | Triggered checkpoint 8486 | -7/Garrison | Triggered checkpoint 8528 | -7/Garrison | Triggered checkpoint 8550 | -7/Garrison | Triggered checkpoint 8632 | -7/Garrison | Triggered checkpoint 8660 | -7/Garrison | Garrison Relay disabled 8693 | -7/Garrison | Discovered new exit (range 14) 8702 | -7/Garrison | Build established: Bothacker-Mutant 8814 | -7/Garrison | Hacker 4d assimilated hostile G-47 Trooper 8860 | -7/Garrison | Garrison Relay disabled 8900 | -7/Garrison | Triggered checkpoint 9048 | -7/Garrison | Discovered new exit (range 8) 9061 | -7/Garrison | Entered Factory 9242 | -7/Factory | Discovered new exit (range 15) 9452 | -7/Factory | Build established: Hauler-Mutant 9604 | -7/Factory | Discovered new exit (range 8) 10098 | -7/Factory | Garrison activated, responded to threat 10118 | -7/Factory | Identified exit to Garrison 10150 | -7/Factory | Entered Garrison 10150 | -7/Garrison | Accompanied by 1 ally 10159 | -7/Garrison | Expanded RIF knowledge: Program Shield 10196 | -7/Garrison | Triggered checkpoint 10229 | -7/Garrison | Garrison Relay disabled 10334 | -7/Garrison | Triggered checkpoint 10479 | -7/Garrison | Triggered checkpoint 10545 | -7/Garrison | Build established: Bothacker-Mutant 10736 | -7/Garrison | Triggered checkpoint 10818 | -7/Garrison | Triggered checkpoint 10880 | -7/Garrison | Triggered checkpoint 10906 | -7/Garrison | Discovered new exit (range 12) 11061 | -7/Garrison | Garrison Relay disabled 11198 | -7/Garrison | Triggered checkpoint 11246 | -7/Garrison | Discovered new exit (range 14) 11316 | -7/Garrison | Garrison Relay disabled 11474 | -7/Garrison | Discovered new exit (range 3) 11550 | -7/Garrison | Triggered checkpoint 11702 | -7/Garrison | Triggered checkpoint 11776 | -7/Garrison | Garrison Relay disabled 11783 | -7/Garrison | Build established: Hauler-Mutant 11804 | -7/Garrison | Triggered checkpoint 11868 | -7/Garrison | Triggered checkpoint 12229 | -7/Garrison | Build established: Commander-Mutant 12238 | -7/Garrison | Triggered checkpoint 12303 | -7/Garrison | Garrison Relay disabled 15362 | -7/Garrison | Entered Factory 15362 | -6/Factory | Accompanied by 26 allies 15362 | -6/Factory | Evolved 2 slots: Utility x2 15580 | -6/Factory | Spotted B-75 Beast 16395 | -6/Factory | Identified exit to Lower Caves 16404 | -6/Factory | Discovered new exit (range 9) 16735 | -6/Factory | Repaired Imp. Medium Armor Plating 17220 | -6/Factory | Garrison activated, responded to threat 17480 | -6/Factory | Build established: Bothacker-Mutant 17778 | -6/Factory | Entered Lower Caves 17778 | -6/Lower Caves | Accompanied by 2 allies 17979 | -6/Lower Caves | Build established: Hauler-Mutant 18044 | -6/Lower Caves | Spotted B-75 Beast 18521 | -6/Lower Caves | Learned location of 1 exit from Factory 18563 | -6/Lower Caves | Encountered a Warlord checkpoint 18683 | -6/Lower Caves | Destroyed B-75 Beast 19061 | -6/Lower Caves | Discovered new exit (range 8) 19228 | -6/Lower Caves | Entered another Lower Caves area 19228 | -6/Lower Caves | Accompanied by 2 allies 19228 | -6/Lower Caves | Discovered new exit (range 14) 19277 | -6/Lower Caves | Learned Factory emergency access door positions 19641 | -6/Lower Caves | Attracted the attention of an 0b10 checkpoint 19691 | -6/Lower Caves | Build established: Scavenger-Mutant 20007 | -6/Lower Caves | Discovered new exit (range 7) 20960 | -6/Lower Caves | Learned location of 2 exits from Factory 21302 | -6/Lower Caves | Entered Data Miner 21302 | -6/Data Miner | Accompanied by 2 allies 21302 | -6/Data Miner | Discovered new exit (range 6) 21331 | -6/Data Miner | Met Data Miner 21367 | -6/Data Miner | Learned location of Section 7 (-3) 21367 | -6/Data Miner | Acquired the access code to Warlord's prototype stash 21388 | -6/Data Miner | Received God Mode back door access code from Data Miner 21755 | -6/Data Miner | Interfaced with the Data Conduit 21953 | -6/Data Miner | Entered Proximity Caves 21953 | -5/Proximity Caves | Accompanied by 1 ally 22331 | -5/Proximity Caves | Learned Factory terminal intel 23131 | -5/Proximity Caves | Attracted the attention of an 0b10 checkpoint 23171 | -5/Proximity Caves | Spotted B-75 Beast 23534 | -5/Proximity Caves | Discovered new exit (range 8) 23609 | -5/Proximity Caves | Entered Factory 23609 | -5/Factory | Evolved 2 slots: Power x1, Utility x1 23610 | -5/Factory | Identified exit to Factory 23612 | -5/Factory | Loaded intel: 246 machine locations 23613 | -5/Factory | Loaded intel: 20 terminal locations 23711 | -5/Factory | Spotted B-75 Beast 24474 | -5/Factory | Identified exit to Garrison 24495 | -5/Factory | Entered Garrison 24496 | -5/Garrison | Loaded intel: 19 machine locations 24504 | -5/Garrison | Expanded RIF knowledge: Hotswap 24570 | -5/Garrison | Triggered checkpoint 24596 | -5/Garrison | Garrison Relay disabled 24722 | -5/Garrison | Triggered checkpoint 24738 | -5/Garrison | Triggered checkpoint 24813 | -5/Garrison | Triggered checkpoint 25037 | -5/Garrison | Build established: Bothacker-Mutant 25063 | -5/Garrison | Garrison Relay disabled 25118 | -5/Garrison | Triggered checkpoint 25230 | -5/Garrison | Triggered checkpoint 25314 | -5/Garrison | Triggered checkpoint 25356 | -5/Garrison | Found Antimissile System 25531 | -5/Garrison | Build established: Commander-Mutant 25610 | -5/Garrison | Discovered new exit (range 7) 25634 | -5/Garrison | Triggered checkpoint 25730 | -5/Garrison | Garrison Relay disabled 25892 | -5/Garrison | Triggered checkpoint 25936 | -5/Garrison | Garrison Relay disabled 26013 | -5/Garrison | Discovered new exit (range 13) 26016 | -5/Garrison | Build established: Botlord-Mutant 26166 | -5/Garrison | Triggered checkpoint 26492 | -5/Garrison | Build established: Commander-Mutant 26553 | -5/Garrison | Discovered new exit (range 15) 27211 | -5/Garrison | Entered Factory 27211 | -5/Factory | Accompanied by 18 allies 27212 | -5/Factory | Loaded intel: 240 machine locations 27355 | -5/Factory | Fabricated M-13 Machinist (x1) 27384 | -5/Factory | Fabricated Tactical Coordination Suite (x1) 27622 | -5/Factory | Found Exp. Signal Interpreter 28222 | -5/Factory | Garrison activated, responded to threat 28348 | -5/Factory | Identified exit to Garrison 28348 | -5/Factory | Entered Garrison 28348 | -5/Garrison | Accompanied by 5 allies 28349 | -5/Garrison | Loaded intel: 17 machine locations 28390 | -5/Garrison | Triggered checkpoint 28490 | -5/Garrison | Garrison Relay disabled 28599 | -5/Garrison | Spotted B-75 Beast 28604 | -5/Garrison | Triggered checkpoint 28673 | -5/Garrison | Assimilated Beast 6a with formatsys_high 28689 | -5/Garrison | Destroyed 7 combat bots 28705 | -5/Garrison | Triggered checkpoint 28707 | -5/Garrison | Triggered checkpoint 28792 | -5/Garrison | Discovered exit to Factory (range 12) 28821 | -5/Garrison | Expanded RIF knowledge: Alert ID Control 28880 | -5/Garrison | Triggered checkpoint 28941 | -5/Garrison | Garrison Relay disabled 29085 | -5/Garrison | Triggered checkpoint 29149 | -5/Garrison | Garrison Relay disabled 29200 | -5/Garrison | Discovered exit to Factory (range 10) 29236 | -5/Garrison | Build established: Bothacker-Mutant 29398 | -5/Garrison | Discovered exit to Factory (range 5) 29438 | -5/Garrison | Triggered checkpoint 29474 | -5/Garrison | Garrison Relay disabled 30154 | -5/Garrison | Build established: Botlord-Mutant 30299 | -5/Garrison | Entered Factory 30299 | -4/Factory | Accompanied by 3 allies 30299 | -4/Factory | Evolved 2 slots: Utility x2 30300 | -4/Factory | Loaded intel: 249 machine locations 30372 | -4/Factory | Repaired Med. Reflective Plating 30638 | -4/Factory | Found Exp. Hacking Suite 30795 | -4/Factory | Destroyed 7 combat bots 30837 | -4/Factory | First assault squad dispatched 31488 | -4/Factory | Spotted B-86 Titan 31809 | -4/Factory | Discovered new exit (range 6) 31843 | -4/Factory | Identified exit to Garrison 31847 | -4/Factory | Entered Garrison 31847 | -4/Garrison | Accompanied by 4 allies 31848 | -4/Garrison | Loaded intel: 17 machine locations 31888 | -4/Garrison | Triggered checkpoint 31931 | -4/Garrison | Garrison Relay disabled 31998 | -4/Garrison | Triggered checkpoint 32063 | -4/Garrison | Spotted B-86 Titan 32102 | -4/Garrison | Triggered checkpoint 32201 | -4/Garrison | Discovered new exit (range 10) 32235 | -4/Garrison | Expanded RIF knowledge: Patrol Navigation 32284 | -4/Garrison | Triggered checkpoint 32333 | -4/Garrison | Garrison Relay disabled 32653 | -4/Garrison | Destroyed B-86 Titan 32688 | -4/Garrison | Destroyed 10 combat bots 32764 | -4/Garrison | Triggered checkpoint 32791 | -4/Garrison | Garrison Relay disabled 32832 | -4/Garrison | Discovered new exit (range 14) 32984 | -4/Garrison | Discovered new exit (range 14) 33068 | -4/Garrison | Garrison Relay disabled 33074 | -4/Garrison | Triggered checkpoint 33536 | -4/Garrison | Entered Factory 33536 | -4/Factory | Accompanied by 1 ally 33537 | -4/Factory | Loaded intel: 256 machine locations 33714 | -4/Factory | Repaired Prc. Matter Filter? 33813 | -4/Factory | Garrison activated, responded to threat 33884 | -4/Factory | Found Powered Armor 33887 | -4/Factory | Found Powered Armor 33908 | -4/Factory | Found Powered Armor 34199 | -4/Factory | Identified exit to Garrison 34236 | -4/Factory | Entered Garrison 34236 | -4/Garrison | Accompanied by 6 allies 34237 | -4/Garrison | Loaded intel: 21 machine locations 34330 | -4/Garrison | Triggered checkpoint 34366 | -4/Garrison | Triggered checkpoint 34460 | -4/Garrison | Triggered checkpoint 34474 | -4/Garrison | Garrison Relay disabled 34653 | -4/Garrison | Discovered new exit (range 8) 34770 | -4/Garrison | Triggered checkpoint 34832 | -4/Garrison | Garrison Relay disabled 34864 | -4/Garrison | Triggered checkpoint 34864 | -4/Garrison | Garrison Relay disabled 34906 | -4/Garrison | Phase Generator disabled 35084 | -4/Garrison | Triggered checkpoint 35102 | -4/Garrison | Triggered checkpoint 35189 | -4/Garrison | Discovered new exit (range 10) 35210 | -4/Garrison | Triggered checkpoint 35237 | -4/Garrison | Garrison Relay disabled 35485 | -4/Garrison | Discovered new exit (range 8) 35497 | -4/Garrison | Identified exit to Research 35507 | -4/Garrison | Expanded RIF knowledge: Command Fork 35559 | -4/Garrison | Triggered checkpoint 35609 | -4/Garrison | Garrison Relay disabled 36204 | -4/Garrison | Entered Research 36204 | -3/Research | Accompanied by 10 allies 36204 | -3/Research | Evolved 2 slots: Utility x2 36205 | -3/Research | Identified exit to Armory 36206 | -3/Research | Loaded intel: 94 machine locations 36272 | -3/Research | Repaired Powered Armor 36538 | -3/Research | Garrison activated, responded to threat 36676 | -3/Research | Spotted B-86 Titan 36684 | -3/Research | Fabricated P-70 Sage? 36692 | -3/Research | Allies destroyed B-86 Titan 36697 | -3/Research | Local fabrication network quarantined 36704 | -3/Research | First assault squad dispatched 36809 | -3/Research | Garrison activated, responded to threat 36823 | -3/Research | Intercept squad dispatched 36837 | -3/Research | Spotted Tracker 36837 | -3/Research | Spotted Tracker 36855 | -3/Research | Destroyed Tracker 36857 | -3/Research | Allies destroyed Tracker 36878 | -3/Research | Spotted Combat Programmer 36889 | -3/Research | Destroyed Combat Programmer 36925 | -3/Research | P-80 Master assimilated hostile Y-72 Warden 36937 | -3/Research | Spotted Combat Programmer 36959 | -3/Research | Destroyed Combat Programmer 37355 | -3/Research | Discovered new exit (range 17) 37397 | -3/Research | Identified exit to Quarantine 37402 | -3/Research | Entered Quarantine 37402 | -3/Quarantine | Accompanied by 3 allies 37403 | -3/Quarantine | Loaded intel: 89 machine locations 37740 | -3/Quarantine | Discovered new exit (range 5) 37745 | -3/Quarantine | Identified exit to Research 38008 | -3/Quarantine | Found Alien Energy Cannon 38237 | -3/Quarantine | Spotted Alpha 7 38418 | -3/Quarantine | Found Alien Artifact 38425 | -3/Quarantine | Found Alien Artifact 38594 | -3/Quarantine | Intercept squad dispatched 38594 | -3/Quarantine | Spotted Tracker 38599 | -3/Quarantine | Destroyed Tracker 38629 | -3/Quarantine | Spotted Combat Programmer 38631 | -3/Quarantine | Garrison activated, responded to threat 38634 | -3/Quarantine | Destroyed Combat Programmer 38687 | -3/Quarantine | Found Exp. Phase Shifter 38691 | -3/Quarantine | Found Exp. Targeting Computer 39187 | -3/Quarantine | Intercept squad dispatched 39194 | -3/Quarantine | Spotted Tracker 39195 | -3/Quarantine | Spotted Tracker 39202 | -3/Quarantine | Destroyed Tracker 39214 | -3/Quarantine | Destroyed Tracker 39217 | -3/Quarantine | System corruption reached 10% 39218 | -3/Quarantine | Found Exp. Targeting Computer 39223 | -3/Quarantine | Spotted Combat Programmer 39224 | -3/Quarantine | Spotted Combat Programmer 39236 | -3/Quarantine | Destroyed Combat Programmer 39244 | -3/Quarantine | Destroyed Combat Programmer 39422 | -3/Quarantine | Identified Core Cannon 39451 | -3/Quarantine | Found Gamma Bomb Array 39510 | -3/Quarantine | Met incapacitated Sigix Warrior 39510 | -3/Quarantine | Lockdown squad dispatched 39512 | -3/Quarantine | Acquired the access code to the Sigix quarantine chamber 39515 | -3/Quarantine | Unlocked Sigix quarantine chamber 39644 | -3/Quarantine | Spotted Lightning 39645 | -3/Quarantine | Destroyed Lightning 39652 | -3/Quarantine | Spotted Lightning 39653 | -3/Quarantine | Spotted Lightning 39663 | -3/Quarantine | Destroyed Lightning 39665 | -3/Quarantine | Destroyed Lightning 39722 | -3/Quarantine | Found Prototype Energy Cannon 39722 | -3/Quarantine | Identified EMDS 39731 | -3/Quarantine | Found EMDS 39740 | -3/Quarantine | Found EM Dispersion Field 39860 | -3/Quarantine | Found Alien Slashing Weapon 39860 | -3/Quarantine | Identified Sigix Broadsword 39913 | -3/Quarantine | Found Prototype Processor 39913 | -3/Quarantine | Identified Exp. Target Analyzer 39980 | -3/Quarantine | Destroyed Alpha 7 39987 | -3/Quarantine | Found Prototype Ballistic Gun 40013 | -3/Quarantine | Found Alien Launcher 40033 | -3/Quarantine | Build established: Scavenger-Mutant 40104 | -3/Quarantine | Identified Transdimensional Reconstructor 40104 | -3/Quarantine | Identified Hpw. Transdimensional Reconstructor 40141 | -3/Quarantine | Warped through subspace 40235 | -3/Quarantine | Identified Multirail 40240 | -3/Quarantine | Identified Sigix Terminator 40387 | -3/Quarantine | Intercept squad dispatched 40397 | -3/Quarantine | Spotted Tracker 40398 | -3/Quarantine | Spotted Tracker 40398 | -3/Quarantine | Spotted Tracker 40399 | -3/Quarantine | Destroyed Tracker 40420 | -3/Quarantine | Destroyed Tracker 40426 | -3/Quarantine | Spotted Combat Programmer 40427 | -3/Quarantine | Spotted Combat Programmer 40428 | -3/Quarantine | Spotted Combat Programmer 40434 | -3/Quarantine | Destroyed Tracker 40447 | -3/Quarantine | Destroyed Combat Programmer 40456 | -3/Quarantine | Destroyed Combat Programmer 40465 | -3/Quarantine | Destroyed Combat Programmer 40467 | -3/Quarantine | Found Exp. Phase Shifter 40470 | -3/Quarantine | Found Exp. Phase Shifter 40481 | -3/Quarantine | Lost 4 parts (1p2u1w) 40485 | -3/Quarantine | Found Alien Artifact 40498 | -3/Quarantine | Found Exp. Phase Shifter 40628 | -3/Quarantine | Found Alien Artifact 40668 | -3/Quarantine | Identified Core Reset Matrix 40668 | -3/Quarantine | Identified Subatomic Replicator 40902 | -3/Quarantine | First assault squad dispatched 40953 | -3/Quarantine | Intercept squad dispatched 40969 | -3/Quarantine | Spotted Tracker 40971 | -3/Quarantine | Spotted Tracker 40971 | -3/Quarantine | Spotted Tracker 40990 | -3/Quarantine | System corruption reached 30% 40991 | -3/Quarantine | Core integrity fell below 50% 40994 | -3/Quarantine | Spotted Combat Programmer 40994 | -3/Quarantine | Spotted Combat Programmer 40998 | -3/Quarantine | Destroyed Tracker 41000 | -3/Quarantine | Spotted Combat Programmer 41019 | -3/Quarantine | Self-destructed Last Messages --------------- 41005_ Tracker destroyed. 41007_ Penetrated by EMDS Slug. 41007_ Exp. Phase Shifter destroyed. 41007_ Linked Autogun destroyed. 41007_ EMDS Slug penetrates Artifact Storage. 41008_ EMDS Slug penetrates Wall. 41009_ Acquired 10 matter. 41009_ Penetrated by EMDS Slug. 41009_ Potential Refractor disabled. 41010_ Penetrated by EMDS Slug. 41012_ Critical hit. 41013_ Penetrated by EMDS Slug. 41015_ System corrupted: Energy discharge (-1). 41016_ Penetrated by EMDS Slug. 41016_ EMDS Slug penetrates Artifact Storage. 41016_ System corrupted: Linked Autogun targeting data glitched. 41019_ Penetrated by EMDS Slug. 41019_ Critical hit. 41019_ Imp. Medium Armor Plating destroyed. 41019_ Artifact Storage disabled. Map ----- +----------------------------------------------------+ | # [ ! # """""" #??# | | ####+##################+##### # ""S""" #??# | | # = ##?????#???# # # """ #??# | | # #???????#### # # #### | | ### ! #?????#???## "" " # + """ " " | | ?## ! ##?######??# "" " # # """ #### | | ??# *!==#?#??##???## """" + # """ #??# | | ??# [%|%##??#?###??# "" # # #??# | | #######+#######?##### "" ##############??# | | # [*%=[ #???##?# #?##???#????????# | | # =/! ####?################????#??#????# | | # #####?#?#?###?######????#???#????#### | | # """ """ ##??#######?##???###?#?###?########## | | # """ """ ########?####????#?###??#?#?# = | | # """ """ ###?######?#????#???#????##?# % | | # ###?##########??######?#?#??# """ """ | | # """ """ ###?###?#?#??####???##??##??# "&" "&" | | # """ """ #?##?#############???###??#?# """ """ | | # """ """ #?#?###?###?###############?# ""T"" | | # ###?##########?# ##### | | # ! #########?###### """ ##?## | | #######+######"""T"""###??### """ |##########/## | | ##??# + [ = / ####?#[""" #?# | | ?#??# # """"" """"" ###?##=""" | ### | ! | | ##### # """"" "" !######! "" ### =[**=|% | | #?###^^^^# """" %;%@ |p*"""i ### ! [%! = | | #####^ ^ # g p s !######=!= ! #?# ###### | | ##### #!m |g * ####?#![ |*[ ### ##???? | | ##### ###+####################+###### ##???? | | ## = ! %% #?#??? | | ## *=[ * #????? | | ## !=!|% ##???? | | ## !!=*== #????? | | ############+#########+######################????? | | ####??#?# #####%![##########?###?####?????? | | ?######## """ #####==[ ####?#?##?##?#?????? | | #####??## """ "" ##!!*T# ##??#######?#??????? | | ##???####"" """ """##"%"## #######?###?#??????? | | #########""" S"##"""##"["######?#?#?#???????? | | #######?#"R """ #####"""##" "#??####?#?#????????? | | #####?#?#""" """ ####################?#####??????? | | #########"" """ #?####?#####?#########?#????????? | | #?#?##?## ###?##?###?#?##?#?#??####???????? | | ?#?###?#############?######??##?#?#####??????????? | | ##???####?########?##########?#####??#???????????? | | #?######?##??#?#?###?####??#??###?#?#????????????? | | | | | | | | | +----------------------------------------------------+ Best States ------------- Heat Dissipation 77 Energy Generation 45 Energy Capacity 1090 Matter Stores 550 Matter Capacity 550 Sight Range 20 Robot Scan Range 20 Terrain Scan Range 24 Terrain Scan Density 210 Jamming Range 16 Armor Coverage 900 Resistance: KI 30 Resistance: TH 15 Resistance: EM 75 Core Shielding 20 Utility Shielding 90 Weapon Shielding 66 Weapon Cycling 20 Phase Shifting 20 Evasion (%) 60 Targeting Accuracy 24 Melee Accuracy 14 Armor Integrity Analysis 50 Recoil Reduction 4 Matter Filtering 50 Kinecelleration 40 Offensive Hacking 30 Relay Coupler Types 82 Relay Coupler Value 3 Item Schematics ----------------- Lgt. Fission Core | -8/Materials | Scanalyzed Hacking Suite | -8/Materials | Scanalyzed Lrg. Storage Unit | -8/Materials | Scanalyzed Imp. Flight Unit | -8/Materials | Hacked Cld. VTOL Module | -6/Factory | Hacked Kinetic Spear | -6/Data Miner | Free Plasma Sword | -6/Data Miner | Free Mni. Smartbomb Launcher | -6/Data Miner | Free Tactical Coordination Suite | -6/Data Miner | Free Triangulator | -6/Data Miner | Free Lgt. Regenerative Plating | -6/Data Miner | Free Combat Drone Bay | -6/Data Miner | Free Adv. Powered Armor | -3/Research | Hacked Adv. Heavy Siege Treads | -3/Quarantine | Hacked Robot Schematics ------------------ M-13 Machinist | -10/Materials | Hacked P-60 Hacker | -7/Factory | Downloaded I-47 Archangel | -6/Data Miner | Free I-36 Angel | -6/Data Miner | Free P-70 Sage | -6/Data Miner | Free G-67 Veteran | -6/Data Miner | Free G-50 Soldier | -6/Data Miner | Free S-27 Virus | -6/Data Miner | Free Fabricated ------------ P-60 Hacker | x2 | -7/Factory | Preloaded P-60 Hacker | x2 | -7/Factory | Preloaded M-13 Machinist | x1 | -5/Factory Tactical Coordination Suite | x1 | -5/Factory P-70 Sage | x2 | -3/Research Alien Tech Used ----------------- Core Cannon Sigix Broadsword Transdimensional Reconstructor Achievements -------------- None Challenges ------------ None Game ------ Seed DroneSiegeDetonator Manual? 0 Play Time 05:19:03 Cumulative 576.5 hours Start 2021.06.08 @ 20:02:56 End 2021.06.11 @ 16:21:58 Sessions 9 Manual Loads 0 Difficulty Rogue Special Mode None Game No. 354 Rogue 354 Adventurer 0 Explorer 0 Win Type - Total 6 Types 4/0/1/0/1/0/0/0/0 Lore% 88 Gallery% 89 Achievement% 71 Wizard Run 0 Options --------- ASCII 0 Keyboard 0 Movement Mouse Keybinds 1 Fullscreen 2 Font 24/Smallcaps Map View 76x50 Tactical HUD 1 Map Filters NONE Filters NONE Steam 1 RUN: 2a95823d-0604-4f36-af26-76b3ef6a9040